fUST/lending_fUST_20250215
["ID","MTS","AMOUNT","RATE_DAILY","PERIOD"]
[353107032,1739563839332,-246.24229999,0.00013698,2]
[353107034,1739563839342,-500.0,0.00013698,2]
[353107036,1739563839351,-500.0,0.00013698,2]
[353107038,1739563839363,-500.0,0.00013698,2]
[353107040,1739563839373,-987.54,0.00013698,2]
[353107042,1739563839382,-500.0,0.00013698,2]
[353107044,1739563839391,-500.0,0.00013698,2]
[353107045,1739563839401,-500.0,0.00013698,2]
[353107047,1739563839413,-500.0,0.00013698,2]
[353107049,1739563839423,-2201.79,0.00013698,2]
[353107051,1739563839433,-500.0,0.00013698,2]
[353107053,1739563839445,-500.0,0.00013698,2]
[353107055,1739563839455,-500.0,0.00013698,2]
[353107057,1739563839464,-500.0,0.00013698,2]
[353107059,1739563839474,-500.0,0.00013698,2]
[353107061,1739563839483,-500.0,0.00013698,2]
[353107063,1739563839493,-925.28,0.00013698,2]
[353107065,1739563839503,-684.25,0.00013698,2]
[353107067,1739563839512,-500.0,0.00013698,2]
[353107069,1739563839521,-500.0,0.00013698,2]
[353107071,1739563839530,-500.0,0.00013698,2]
[353107073,1739563839541,-158.71,0.00013698,2]
[353107075,1739563839550,-1719.64,0.00013698,2]
[353107077,1739563839559,-500.0,0.00013698,2]
[353107079,1739563839569,-505.41185437,0.00013698,2]
[353107081,1739563839578,-460.04969692,0.00013698,2]
[353107083,1739563839587,-500.0,0.00013698,2]
[353107085,1739563839597,-4895.69,0.00013698,2]
[353107087,1739563839606,-500.0,0.00013698,2]
[353107089,1739563839616,-331.01036333,0.00013698,2]
[353107091,1739563839625,-500.0,0.00013698,2]
[353107093,1739563839635,-16317.61,0.00013698,2]
[353107095,1739563839644,-500.0,0.00013698,2]
[353107097,1739563839653,-500.0,0.00013698,2]
[353107099,1739563839663,-2803.32,0.00013698,2]
[353107101,1739563839672,-2626.3,0.00013698,2]
[353107103,1739563839681,-2626.3,0.00013698,2]
[353107105,1739563839690,-500.0,0.00013698,2]
[353107107,1739563839700,-2626.3,0.00013698,2]
[353107109,1739563839709,-2626.3,0.00013698,2]
[353107111,1739563839719,-2626.3,0.00013698,2]
[353107113,1739563839728,-2626.3,0.00013698,2]
[353107115,1739563839739,-2626.3,0.00013698,2]
[353107117,1739563839749,-2626.3,0.00013698,2]
[353107119,1739563839758,-2626.3,0.00013698,2]
[353107121,1739563839768,-2626.3,0.00013698,2]
[353107123,1739563839778,-57027.33,0.00013698,2]
[353107125,1739563839787,-2626.3,0.00013698,2]
[353107127,1739563839798,-2626.3,0.00013698,2]
[353107130,1739563839808,-500.0,0.00013698,2]
[353107131,1739563839818,-2626.3,0.00013698,2]
[353107134,1739563839827,-553.35952589,0.00013698,2]
[353107136,1739563839836,-2626.3,0.00013698,2]
[353107138,1739563839846,-2626.3,0.00013698,2]
[353107140,1739563839856,-2626.3,0.00013698,2]
[353107142,1739563839865,-2626.3,0.00013698,2]
[353107144,1739563839875,-500.98460817,0.00013698,2]
[353107146,1739563839885,-2626.3,0.00013698,2]
[353107149,1739563839894,-794.14,0.00013698,2]
[353107151,1739563839905,-2626.3,0.00013698,2]
[353107153,1739563839914,-2626.3,0.00013698,2]
[353107155,1739563839923,-511.91622594,0.00013698,2]
[353107157,1739563839932,-492.97114112,0.00013698,2]
[353107160,1739563839942,-500.0,0.00013698,2]
[353107162,1739563839953,-2626.3,0.00013698,2]
[353107164,1739563839962,-2626.3,0.00013698,2]
[353107166,1739563839972,-2626.3,0.00013698,2]
[353107168,1739563839981,-2536.04,0.00013698,2]
[353107170,1739563839990,-2626.37,0.00013698,2]
[353107172,1739563840000,-500.0,0.00013698,2]
[353107174,1739563840009,-500.0,0.00013698,2]
[353107176,1739563840020,-505.23442972,0.00013698,2]
[353107177,1739563840030,-500.0,0.00013698,2]
[353107179,1739563840040,-500.0,0.00013698,2]
[353107180,1739563840049,-3079.36,0.00013698,2]
[353107181,1739563840058,-500.0,0.00013698,2]
[353107182,1739563840068,-500.0,0.00013698,2]
[353107183,1739563840078,-500.0,0.00013698,2]
[353107184,1739563840089,-662.28,0.00013698,2]
[353107185,1739563840100,-500.0,0.00013698,2]
[353107186,1739563840111,-502.93999454,0.00013698,2]
[353107187,1739563840123,-500.0,0.00013698,2]
[353107189,1739563840132,-500.0,0.00013698,2]
[353107191,1739563840141,-500.0,0.00013698,2]
[353107193,1739563840150,-500.0,0.00013698,2]
[353107195,1739563840160,-771.58,0.00013698,2]
[353107197,1739563840169,-500.0,0.00013698,2]
[353107199,1739563840179,-500.0,0.00013698,2]
[353107201,1739563840189,-500.0,0.00013698,2]
[353107203,1739563840198,-500.0,0.00013698,2]
[353107205,1739563840208,-266.1518056,0.00013698,2]
[353107207,1739563840218,-1575.29,0.00013698,2]
[353107209,1739563840228,-1969.17,0.00013698,2]
[353107211,1739563840237,-501.38868866,0.00013698,2]
[353107213,1739563840249,-5252.56,0.00013698,2]
[353107215,1739563840258,-500.0,0.00013698,2]
[353107217,1739563840268,-500.0,0.00013698,2]
[353107219,1739563840278,-500.0,0.00013698,2]
[353107221,1739563840287,-500.0,0.00013698,2]
[353107223,1739563840297,-500.0,0.00013698,2]
[353107225,1739563840307,-500.0,0.00013698,2]
[353107227,1739563840317,-4668.56,0.00013698,2]
[353107229,1739563840327,-976.01,0.00013698,2]
[353107231,1739563840336,-500.0,0.00013698,2]
[353107243,1739563840432,-981.58,0.00013698,2]
[353107245,1739563840451,-500.0,0.00013698,2]
[353107247,1739563840461,-940.27,0.00013698,2]
[353107249,1739563840470,-500.0,0.00013698,2]
[353107251,1739563840479,-500.0,0.00013698,2]
[353107253,1739563840489,-500.0,0.00013698,2]
[353107255,1739563840499,-3068.21,0.00013698,2]
[353107257,1739563840510,-500.0,0.00013698,2]
[353107259,1739563840520,-500.0,0.00013698,2]
[353107261,1739563840530,-4812.24,0.00013698,2]
[353107263,1739563840539,-500.0,0.00013698,2]
[353107265,1739563840548,-2733.94,0.00013698,2]
[353107267,1739563840561,-500.0,0.00013698,2]
[353107269,1739563840570,-1557.36,0.00013698,2]
[353107271,1739563840580,-500.0,0.00013698,2]
[353107274,1739563840590,-500.0,0.00013698,2]
[353107277,1739563840599,-500.0,0.00013698,2]
[353107279,1739563840608,-500.0,0.00013698,2]
[353107281,1739563840618,-500.0,0.00013698,2]
[353107283,1739563840629,-500.0,0.00013698,2]
[353107285,1739563840638,-500.0,0.00013698,2]
[353107287,1739563840647,-500.0,0.00013698,2]
[353107289,1739563840656,-500.0,0.00013698,2]
[353107291,1739563840666,-827.85,0.00013698,2]
[353107293,1739563840675,-176.13621671,0.00013698,2]
[353107296,1739563840685,-500.0,0.00013698,2]
[353107298,1739563840695,-500.0,0.00013698,2]
[353107300,1739563840704,-629.94877595,0.00013698,2]
[353107302,1739563840713,-500.0,0.00013698,2]
[353107304,1739563840723,-384.1121605,0.00013698,2]
[353107306,1739563840732,-500.0,0.00013698,2]
[353107308,1739563840743,-500.0,0.00013698,2]
[353107310,1739563840752,-500.0,0.00013698,2]
[353107312,1739563840762,-500.0,0.00013698,2]
[353107314,1739563840771,-606.52,0.00013698,2]
[353107316,1739563840780,-2398.09,0.00013698,2]
[353107318,1739563840790,-500.0,0.00013698,2]
[353107320,1739563840799,-629.69853506,0.00013698,2]
[353107322,1739563840808,-500.0,0.00013698,2]
[353107324,1739563840818,-500.0,0.00013698,2]
[353107326,1739563840827,-22685.27,0.00013698,2]
[353107328,1739563840837,-500.0,0.00013698,2]
[353107330,1739563840847,-500.0,0.00013698,2]
[353107332,1739563840857,-529.71,0.00013698,2]
[353107334,1739563840866,-500.0,0.00013698,2]
[353107336,1739563840875,-1128.04,0.00013698,2]
[353107338,1739563840885,-500.0,0.00013698,2]
[353107340,1739563840894,-506.17,0.00013698,2]
[353107342,1739563840904,-500.0,0.00013698,2]
[353107344,1739563840913,-618.36,0.00013698,2]
[353107346,1739563840923,-901.46,0.00013698,2]
[353107348,1739563840933,-5962.05,0.00013698,2]
[353107350,1739563840942,-61802.7015222,0.00013699,2]
[353107352,1739563840956,-2033.99924,0.00013699,2]
[353107354,1739563840966,-511.909695,0.00013699,2]
[353107356,1739563840975,-500.0,0.00013699,2]
[353107358,1739563840985,-500.0,0.00013699,2]
[353107360,1739563840996,-500.0,0.00013699,2]
[353107362,1739563841006,-500.0,0.00013699,2]
[353107364,1739563841016,-500.0,0.00013699,2]
[353107366,1739563841027,-500.0,0.00013699,2]
[353107368,1739563841037,-302.0,0.00013699,2]
[353107370,1739563841047,-500.0,0.00013699,2]
[353107372,1739563841056,-500.0,0.00013699,2]
[353107374,1739563841066,-500.0,0.00013699,2]
[353107376,1739563841075,-500.0,0.00013699,2]
[353107378,1739563841085,-500.0,0.00013699,2]
[353107380,1739563841095,-500.0,0.00013699,2]
[353107382,1739563841105,-500.0,0.00013699,2]
[353107384,1739563841114,-500.0,0.00013699,2]
[353107386,1739563841124,-500.0,0.00013699,2]
[353107388,1739563841133,-500.0,0.00013699,2]
[353107390,1739563841142,-500.0,0.00013699,2]
[353107392,1739563841152,-500.0,0.00013699,2]
[353107394,1739563841162,-500.0,0.00013699,2]
[353107396,1739563841171,-500.0,0.00013699,2]
[353107398,1739563841181,-500.0,0.00013699,2]
[353107400,1739563841191,-500.0,0.00013699,2]
[353107402,1739563841201,-500.0,0.00013699,2]
[353107404,1739563841211,-500.0,0.00013699,2]
[353107406,1739563841222,-500.0,0.00013699,2]
[353107408,1739563841232,-500.0,0.00013699,2]
[353107410,1739563841243,-500.0,0.00013699,2]
[353107412,1739563841252,-500.0,0.00013699,2]
[353107414,1739563841262,-500.0,0.00013699,2]
[353107416,1739563841272,-500.0,0.00013699,2]
[353107418,1739563841282,-500.0,0.00013699,2]
[353107420,1739563841292,-500.0,0.00013699,2]
[353107422,1739563841302,-500.0,0.00013699,2]
[353107424,1739563841314,-500.0,0.00013699,2]
[353107426,1739563841324,-500.0,0.00013699,2]
[353107428,1739563841334,-500.0,0.00013699,2]
[353107430,1739563841343,-500.0,0.00013699,2]
[353107432,1739563841354,-500.0,0.00013699,2]
[353107434,1739563841366,-500.0,0.00013699,2]
[353107436,1739563841375,-500.0,0.00013699,2]
[353107438,1739563841385,-500.0,0.00013699,2]
[353107440,1739563841394,-500.0,0.00013699,2]
[353107442,1739563841405,-500.0,0.00013699,2]
[353107444,1739563841415,-500.0,0.00013699,2]
[353107446,1739563841424,-315.27444804,0.00013699,2]
[353107448,1739563841434,-333.210316,0.00013699,2]
[353107450,1739563841445,-333.210316,0.00013699,2]
[353107452,1739563841455,-151.0,0.00013699,2]
[353107454,1739563841465,-151.0,0.00013699,2]
[353107456,1739563841475,-151.0,0.00013699,2]
[353107458,1739563841485,-157.99204051,0.000137,2]
[353107460,1739563841495,-157.99204051,0.000137,2]
[353107462,1739563841505,-157.99,0.000137,2]
[353107464,1739563841516,-157.99204051,0.000137,2]
[353107466,1739563841526,-157.99204051,0.000137,2]
[353107468,1739563841535,-157.99204051,0.000137,2]
[353107470,1739563841545,-157.99204051,0.000137,2]
[353107472,1739563841554,-157.99204051,0.000137,2]
[353107474,1739563841564,-157.99204051,0.000137,2]
[353107476,1739563841574,-157.99,0.000137,2]
[353107478,1739563841583,-151.580436,0.000137,2]
[353107480,1739563841593,-5451.0376023,0.000137,2]
[353107482,1739563841603,-154.45452391,0.000137,2]
[353107484,1739563841612,-154.45452391,0.000137,2]
[353107486,1739563841621,-154.45452391,0.000137,2]
[353107488,1739563841631,-154.45452391,0.000137,2]
[353107490,1739563841640,-154.45452391,0.000137,2]
[353107492,1739563841649,-154.45452391,0.000137,2]
[353107494,1739563841658,-154.45452391,0.000137,2]
[353107496,1739563841668,-154.45452391,0.000137,2]
[353107498,1739563841678,-154.45452391,0.000137,2]
[353107500,1739563841687,-154.45452391,0.000137,2]
[353107502,1739563841697,-154.45452391,0.000137,2]
[353107504,1739563841707,-154.45452391,0.000137,2]
[353107506,1739563841716,-154.45452391,0.000137,2]
[353107508,1739563841726,-154.45452391,0.000137,2]
[353107510,1739563841736,-154.45,0.000137,2]
[353107512,1739563841747,-154.6,0.000137,2]
[353107514,1739563841756,-154.6,0.000137,2]
[353107516,1739563841767,-154.6,0.000137,2]
[353107518,1739563841777,-154.6,0.000137,2]
[353107520,1739563841787,-154.6,0.000137,2]
[353107522,1739563841797,-154.6,0.000137,2]
[353107524,1739563841806,-154.6,0.000137,2]
[353107526,1739563841816,-154.6,0.000137,2]
[353107528,1739563841826,-154.6,0.000137,2]
[353107530,1739563841835,-154.6,0.000137,2]
[353107532,1739563841845,-159.4580452,0.000137,2]
[353107534,1739563841854,-159.4580452,0.000137,2]
[353107536,1739563841865,-159.4580452,0.000137,2]
[353107538,1739563841875,-159.4580452,0.000137,2]
[353107540,1739563841886,-159.4580452,0.000137,2]
[353107542,1739563841895,-159.4580452,0.000137,2]
[353107553,1739563841905,-159.4580452,0.000137,2]
[353107556,1739563842010,-159.45,0.000137,2]
[353107558,1739563842019,-175.83488801,0.00013711,2]
[353107560,1739563842029,-175.83488801,0.00013768,2]
[353107562,1739563842039,-585.45216601,0.00013773,2]
[353107564,1739563842049,-500.0,0.00013773,2]
[353107566,1739563842059,-500.0,0.00013773,2]
[353107568,1739563842069,-500.0,0.00013773,2]
[353107570,1739563842078,-500.0,0.00013773,2]
[353107572,1739563842088,-500.0,0.00013773,2]
[353107574,1739563842097,-590.40186002,0.00013773,2]
[353107576,1739563842107,-500.0,0.00013773,2]
[353107578,1739563842117,-500.0,0.00013773,2]
[353107580,1739563842127,-500.0,0.00013773,2]
[353107582,1739563842137,-500.0,0.00013773,2]
[353107584,1739563842148,-150.61932851,0.00013773,2]
[353107586,1739563842157,-504.53873501,0.00013773,2]
[353107588,1739563842167,-500.0,0.00013773,2]
[353107590,1739563842177,-500.0,0.00013773,2]
[353107592,1739563842187,-605.35717686,0.00013773,2]
[353107594,1739563842197,-500.0,0.00013773,2]
[353107596,1739563842207,-500.0,0.00013773,2]
[353107598,1739563842217,-621.70952141,0.00013773,2]
[353107600,1739563842227,-252.08165828,0.00013773,2]
[353107602,1739563842237,-500.0,0.00013773,2]
[353107604,1739563842246,-500.0,0.00013773,2]
[353107606,1739563842256,-168.32646294,0.00013773,2]
[353107608,1739563842265,-500.0,0.00013773,2]
[353107610,1739563842275,-330.5372851,0.00013773,2]
[353107612,1739563842285,-500.0,0.00013773,2]
[353107614,1739563842294,-163.2426485,0.00013773,2]
[353107616,1739563842304,-261.57331396,0.00013773,2]
[353107618,1739563842313,-430.92771568,0.00013773,2]
[353107620,1739563842323,-320.99929366,0.00013773,2]
[353107622,1739563842333,-500.79566755,0.00013773,2]
[353107624,1739563842343,-501.30709661,0.00013773,2]
[353107626,1739563842354,-478.11359212,0.00013773,2]
[353107628,1739563842367,-270.30126895,0.00013773,2]
[353107630,1739563842377,-500.0,0.00013773,2]
[353107633,1739563842387,-403.20143929,0.00013773,2]
[353107635,1739563842397,-158.67644206,0.00013773,2]
[353107637,1739563842407,-250.71604087,0.00013773,2]
[353107639,1739563842416,-500.0,0.00013773,2]
[353107640,1739563842427,-180.51279233,0.00013773,2]
[353107642,1739563842437,-175.90711828,0.00013773,2]
[353107645,1739563842448,-632.56630618,0.00013773,2]
[353107647,1739563842458,-500.0,0.00013773,2]
[353107649,1739563842468,-500.88228241,0.00013773,2]
[353107651,1739563842479,-168.32249887,0.00013773,2]
[353107653,1739563842488,-500.0,0.00013779,2]
[353107655,1739563842499,-372.39838559,0.00013779,2]
[353107657,1739563842509,-335.15966034,0.00013779,2]
[353107659,1739563842518,-500.0,0.00013779,2]
[353107661,1739563842529,-500.0,0.00013779,2]
[353107663,1739563842538,-500.0,0.00013779,2]
[353107665,1739563842549,-500.0,0.00013779,2]
[353107667,1739563842559,-500.0,0.00013779,2]
[353107669,1739563842569,-502.33790019,0.0001378,2]
[353107671,1739563842578,-358.04093586,0.0001378,2]
[353107673,1739563842588,-240.5343183,0.0001378,2]
[353107675,1739563842598,-500.0,0.0001378,2]
[353107677,1739563842608,-500.0,0.0001378,2]
[353107679,1739563842618,-500.0,0.0001378,2]
[353107681,1739563842628,-500.0,0.0001378,2]
[353107683,1739563842638,-359.65015428,0.0001378,2]
[353107685,1739563842647,-501.51614212,0.0001378,2]
[353107687,1739563842656,-500.0,0.0001378,2]
[353107689,1739563842666,-500.0,0.0001378,2]
[353107691,1739563842675,-500.0,0.0001378,2]
[353107693,1739563842685,-705.03,0.0001378,2]
[353107695,1739563842694,-500.0,0.0001378,2]
[353107697,1739563842703,-500.0,0.0001378,2]
[353107699,1739563842713,-500.0,0.0001378,2]
[353107701,1739563842722,-500.0,0.0001378,2]
[353107703,1739563842732,-503.48,0.0001378,2]
[353107706,1739563842742,-500.0,0.0001378,2]
[353107708,1739563842751,-500.0,0.0001378,2]
[353107710,1739563842761,-500.0,0.0001378,2]
[353107712,1739563842771,-500.0,0.0001378,2]
[353107714,1739563842780,-500.0,0.0001378,2]
[353107717,1739563842790,-500.0,0.0001378,2]
[353107719,1739563842801,-761.95,0.0001378,2]
[353107721,1739563842811,-500.0,0.0001378,2]
[353107723,1739563842821,-518.19188215,0.0001378,2]
[353107725,1739563842831,-500.87367359,0.0001378,2]
[353107727,1739563842840,-607.80798565,0.0001378,2]
[353107730,1739563842851,-500.0,0.0001378,2]
[353107732,1739563842861,-500.0,0.0001378,2]
[353107734,1739563842871,-154.77990034,0.0001378,2]
[353107736,1739563842881,-500.0,0.0001378,2]
[353107738,1739563842890,-500.0,0.0001378,2]
[353107741,1739563842900,-500.0,0.0001378,2]
[353107744,1739563842910,-500.0,0.0001378,2]
[353107746,1739563842920,-500.0,0.0001378,2]
[353107749,1739563842930,-500.0,0.0001378,2]
[353107751,1739563842940,-280.72749938,0.0001378,2]
[353107753,1739563842951,-500.0,0.0001378,2]
[353107755,1739563842960,-500.0,0.0001378,2]
[353107758,1739563842970,-500.0,0.0001378,2]
[353107761,1739563842979,-1615.53,0.0001378,2]
[353107764,1739563842989,-500.0,0.0001378,2]
[353107767,1739563843001,-500.0,0.0001378,2]
[353107770,1739563843010,-500.0,0.0001378,2]
[353107774,1739563843025,-500.0,0.0001378,2]
[353107777,1739563843035,-500.0,0.0001378,2]
[353107781,1739563843045,-500.67774487,0.0001378,2]
[353107785,1739563843055,-500.0,0.0001378,2]
[353107789,1739563843064,-500.0,0.0001378,2]
[353107792,1739563843074,-500.0,0.0001378,2]
[353107795,1739563843084,-500.0,0.0001378,2]
[353107798,1739563843094,-500.0,0.0001378,2]
[353107801,1739563843103,-500.0,0.0001378,2]
[353107804,1739563843112,-500.0,0.0001378,2]
[353107807,1739563843122,-628.74476192,0.0001378,2]
[353107810,1739563843132,-500.0,0.0001378,2]
[353107813,1739563843142,-500.0,0.0001378,2]
[353107816,1739563843152,-561.5498096,0.0001378,2]
[353107819,1739563843162,-511.50051567,0.0001378,2]
[353107822,1739563843172,-500.0,0.0001378,2]
[353107825,1739563843182,-500.0,0.0001378,2]
[353107828,1739563843192,-500.0,0.0001378,2]
[353107831,1739563843201,-500.0,0.0001378,2]
[353107834,1739563843211,-968.3,0.0001378,2]
[353107837,1739563843220,-500.0,0.0001378,2]
[353107839,1739563843230,-500.0,0.0001378,2]
[353107842,1739563843239,-500.0,0.0001378,2]
[353107845,1739563843250,-500.0,0.0001378,2]
[353107848,1739563843260,-1194.45,0.0001378,2]
[353107851,1739563843270,-500.0,0.0001378,2]
[353107854,1739563843279,-552.41785918,0.0001378,2]
[353107857,1739563843289,-500.0,0.0001378,2]
[353107860,1739563843298,-170.10630595,0.0001378,2]
[353107862,1739563843308,-500.0,0.0001378,2]
[353107864,1739563843317,-500.0,0.0001378,2]
[353107866,1739563843327,-632.28730592,0.0001378,2]
[353107869,1739563843337,-500.0,0.0001378,2]
[353107871,1739563843347,-500.0,0.0001378,2]
[353107873,1739563843356,-500.0,0.0001378,2]
[353107884,1739563843455,-151.0,0.0001378,2]
[353107886,1739563843465,-500.0,0.0001378,2]
[353107888,1739563843476,-500.0,0.0001378,2]
[353107890,1739563843485,-500.0,0.0001378,2]
[353107892,1739563843495,-500.0,0.0001378,2]
[353107895,1739563843505,-500.0,0.0001378,2]
[353107898,1739563843514,-500.0,0.0001378,2]
[353107901,1739563843524,-500.0,0.0001378,2]
[353107904,1739563843534,-500.0,0.0001378,2]
[353107906,1739563843543,-48.82612439,0.0001378,2]
[353107931,1739563843776,-451.17387561,0.0001378,2]
[353107934,1739563843786,-507.0558345,0.0001378,2]
[353107936,1739563843796,-500.0,0.0001378,2]
[353107938,1739563843806,-500.0,0.0001378,2]
[353107940,1739563843816,-591.14668182,0.0001378,2]
[353107942,1739563843826,-500.0,0.0001378,2]
[353107944,1739563843836,-500.0,0.0001378,2]
[353107946,1739563843845,-1155.26,0.0001378,2]
[353107948,1739563843854,-162.20274212,0.0001378,2]
[353107950,1739563843867,-337.79725788,0.0001378,2]
[353107952,1739563843876,-500.0,0.0001378,2]
[353107954,1739563843889,-500.0,0.0001378,2]
[353107956,1739563843898,-500.0,0.0001378,2]
[353107958,1739563843908,-500.0,0.0001378,2]
[353107960,1739563843919,-500.0,0.0001378,2]
[353107962,1739563843928,-375.28847783,0.0001378,2]
[353107965,1739563843940,-66.39597238,0.0001378,2]
[353107966,1739563843950,-500.0,0.0001378,2]
[353107968,1739563843959,-522.32232211,0.0001378,2]
[353107970,1739563843969,-500.0,0.0001378,2]
[353107972,1739563843978,-500.0,0.0001378,2]
[353107974,1739563843987,-500.0,0.0001378,2]
[353107976,1739563843997,-500.0,0.0001378,2]
[353107978,1739563844008,-503.73460434,0.0001378,2]
[353107980,1739563844017,-500.0,0.0001378,2]
[353107982,1739563844027,-500.0,0.0001378,2]
[353107984,1739563844037,-500.0,0.0001378,2]
[353107986,1739563844046,-500.0,0.0001378,2]
[353107988,1739563844056,-500.0,0.0001378,2]
[353107990,1739563844066,-961.49,0.0001378,2]
[353107992,1739563844076,-500.0,0.0001378,2]
[353107994,1739563844086,-500.0,0.0001378,2]
[353107996,1739563844096,-510.97387032,0.0001378,2]
[353107998,1739563844106,-381.69804147,0.0001378,2]
[353108000,1739563844115,-500.0,0.0001378,2]
[353108002,1739563844126,-500.0,0.0001378,2]
[353108004,1739563844136,-526.37,0.0001378,2]
[353108006,1739563844145,-501.84386738,0.0001378,2]
[353108008,1739563844155,-500.0,0.0001378,2]
[353108010,1739563844165,-500.0,0.0001378,2]
[353108012,1739563844175,-500.0,0.0001378,2]
[353108014,1739563844185,-1050.92,0.0001378,2]
[353108016,1739563844195,-500.0,0.0001378,2]
[353108018,1739563844204,-500.0,0.0001378,2]
[353108020,1739563844214,-501.14899077,0.0001378,2]
[353108022,1739563844224,-500.0,0.0001378,2]
[353108024,1739563844234,-500.0,0.0001378,2]
[353108026,1739563844243,-500.0,0.0001378,2]
[353108028,1739563844254,-500.0,0.0001378,2]
[353108030,1739563844263,-500.0,0.0001378,2]
[353108032,1739563844272,-500.0,0.0001378,2]
[353108034,1739563844282,-500.0,0.0001378,2]
[353108035,1739563844291,-500.0,0.0001378,2]
[353108036,1739563844301,-500.0,0.0001378,2]
[353108037,1739563844310,-500.0,0.0001378,2]
[353108038,1739563844320,-500.0,0.0001378,2]
[353108039,1739563844330,-489.15845413,0.0001378,2]
[353108040,1739563844339,-501.07551732,0.0001378,2]
[353108041,1739563844349,-500.0,0.0001378,2]
[353108042,1739563844360,-500.0,0.0001378,2]
[353108043,1739563844372,-1038.31,0.0001378,2]
[353108044,1739563844382,-500.0,0.0001378,2]
[353108045,1739563844392,-500.0,0.0001378,2]
[353108046,1739563844403,-503.99248947,0.0001378,2]
[353108048,1739563844412,-392.76298702,0.0001378,2]
[353108050,1739563844421,-500.0,0.0001378,2]
[353108052,1739563844431,-500.0,0.0001378,2]
[353108053,1739563844442,-271.57542888,0.0001378,2]
[353108055,1739563844451,-500.0,0.0001378,2]
[353108067,1739563844557,-500.0,0.0001378,2]
[353108069,1739563844568,-500.0,0.0001378,2]
[353108071,1739563844579,-501.71054458,0.0001378,2]
[353108073,1739563844588,-500.0,0.0001378,2]
[353108075,1739563844599,-502.74228486,0.0001378,2]
[353108077,1739563844609,-506.35335213,0.0001378,2]
[353108079,1739563844619,-197.58,0.0001378,2]
[353108081,1739563844629,-1636.03,0.0001378,2]
[353108083,1739563844639,-500.0,0.0001378,2]
[353108085,1739563844648,-500.0,0.0001378,2]
[353108087,1739563844658,-500.0,0.0001378,2]
[353108089,1739563844667,-500.0,0.0001378,2]
[353108091,1739563844677,-500.0,0.0001378,2]
[353108093,1739563844687,-500.0,0.0001378,2]
[353108095,1739563844697,-902.28,0.0001378,2]
[353108097,1739563844706,-500.0,0.0001378,2]
[353108099,1739563844716,-500.0,0.0001378,2]
[353108101,1739563844725,-500.0,0.0001378,2]
[353108103,1739563844734,-500.0,0.0001378,2]
[353108105,1739563844744,-500.0,0.0001378,2]
[353108107,1739563844754,-500.0,0.0001378,2]
[353108109,1739563844764,-500.0,0.0001378,2]
[353108111,1739563844774,-500.0,0.0001378,2]
[353108113,1739563844783,-500.0,0.0001378,2]
[353108115,1739563844793,-500.0,0.0001378,2]
[353108117,1739563844802,-500.0,0.0001378,2]
[353108119,1739563844813,-500.0,0.0001378,2]
[353108121,1739563844823,-500.0,0.0001378,2]
[353108123,1739563844833,-500.0,0.0001378,2]
[353108125,1739563844843,-500.0,0.0001378,2]